Cogmind - Beta 13 @@@ ROGUE MODE // 2024.04.06 @ 17:17:05 Player: Inomamais Result: Destroyed by Y-45 Defender with Beam Rifle Performance ------------- Evolutions (0) 0 Regions Visited (2) 400 Robots Destroyed (22) 110 Value Destroyed (724) 724 Prototype IDs (3) 60 Alien Tech Used (0) 0 Bonus (-16) -16 TOTAL SCORE: 1278 Bonus ------- Friendly Fire -16 Cogmind --------- Core Integrity 0/250 Matter 196/300 Energy 199/200 System Corruption 0% Temperature Cool (27) Movement Treading (160) Location -10/Subcaves Parts ------- > --- POWER (1) -------- Subdweller Power Source > --- PROPULSION (2) --- Light Treads Light Treads > --- UTILITY (2) ------ (None) > --- WEAPON (2) ------- Battle Rifle Makeshift Axe > --- INVENTORY (5) ---- Subdweller Power Source Aluminum Leg Aluminum Leg Aluminum Leg Heat Sink Peak State ------------ > --- POWER ------------ Subdweller Power Source > --- PROPULSION ------- Light Treads Light Treads > --- UTILITY ---------- Large Storage Unit Improved Targeting Computer > --- WEAPON ----------- Battle Rifle Makeshift Axe > --- INVENTORY -------- Subdweller Power Source Aluminum Leg Aluminum Leg Aluminum Leg Aluminum Leg Aluminum Leg Aluminum Leg Heat Sink High-capacity Matter Pod Scrap Shield Subdweller Machine Gun Battle Cannon Subdweller Shrapnel Launcher [Rating: 15] Favorites ----------- Power Subdweller Power Source Engine Subdweller Power Source Propulsion Light Treads Treads Light Treads Wheel Wheel Utility Large Storage Unit Device Seismic Detector Storage Large Storage Unit Processor Improved Targeting Computer Protection Power Shielding Weapon Assault Rifle Ballistic Gun Assault Rifle Ballistic Cannon Battle Cannon Slashing Weapon Makeshift Axe Build | -11 -10 -10 ------- Run | Yrd Mat Sub Slots Evolved . | . . . Power . | . . . Propulsion . | . . . Utility . | . . . Weapon . | . . . Parts Attached 30 | 6 10 14 Power 8 | 1 3 4 Engine 8 | 1 3 4 Core . | . . . Reactor . | . . . Propulsion 5 | 2 3 . Treads 3 | . 3 . Leg . | . . . Wheel 2 | 2 . . Hover . | . . . Flight . | . . . Utility 7 | 1 3 3 Device 2 | . 1 1 Storage 2 | 1 1 . Processor 1 | . . 1 Hackware . | . . . Protection 2 | . 1 1 Artifact . | . . . Weapon 10 | 2 1 7 Energy Gun . | . . . Energy Cannon . | . . . Ballistic Gun 5 | 2 1 2 Ballistic Cannon 2 | . . 2 Launcher . | . . . Special Weapon . | . . . Impact Weapon . | . . . Slashing Weapon 3 | . . 3 Piercing Weapon . | . . . Special Melee Weapon . | . . . Unidentified Prototypes . | . . . Parts Lost 7 | . 3 4 Power 2 | . 1 1 Propulsion 1 | . 1 . Utility 2 | . . 2 Weapon 2 | . 1 1 Highest Loss Streak 2 | . 2 1 To Critical Strikes . | . . . Average Slot Usage (%) 97 | . 96 99 Engine 14 | . 14 14 Treads 26 | . 24 28 Wheel 1 | . 3 . Device 11 | . 9 12 Storage 13 | . 14 13 Ballistic Gun 22 | . 28 18 Ballistic Cannon 2 | . . 4 Slashing Weapon 3 | . . 5 Naked Turns . | . . . Heaviest Build 32 | 11 29 32 Greatest Support 40 | 20 40 40 Greatest Overweight (x) . | . . . Average Overweight (x) . | . . . Largest Inventory Capacity 15 | 8 15 15 Average Capacity 13 | 6 12 14 Most Carried 15 | 6 15 15 Average Carried 12 | 2 9 14 Final Capacity 15 | 8 15 5 Final Carried 15 | 6 15 5 Class Distribution -------------------- 100% | Mutant Dominant Class ---------------- Mutant | -10/Materials Mutant | -10/Subcaves Resources | -11 -10 -10 ----------- Run | Yrd Mat Sub Matter Collected 1013 | 260 464 289 Remotely . | . . . Salvage Created 861 | . 642 219 Parts 65 | . 44 21 Haulers Intercepted . | . . . Recyclers Shooed . | . . . Parts Field Recycled . | . . . Retrieved Matter . | . . . Parts Self-Destructed 8 | . . 8 Prevented . | . . . Kills | -11 -10 -10 ------- Run | Yrd Mat Sub Combat Hostiles Destroyed 22 | . 16 6 Guns 19 | . 16 3 Cannons 3 | . . 3 Classes Destroyed 4 | . 2 2 Swarmer 3 | . 2 1 Grunt 14 | . 14 . Sentry 1 | . . 1 Subdweller 4 | . . 4 Best Kill Streak 5 | . 5 2 Combat Bots Only 5 | . 5 2 Max Kills in Single Turn 1 | . 1 1 Gunslinging . | . . . Exploded . | . . . Melee . | . . . Uniques/NPCs Destroyed . | . . . Combat | -11 -10 -10 -------- Run | Yrd Mat Sub Hostile Shots Fired 141 | . 101 40 Missed 32 | . 24 8 Damage Taken 1454 | . 826 628 Core 257 | . 164 93 Absorbed by Shields . | . . . Core Remaining (%) 100 | 100 . . Volleys Fired 110 | . 81 29 Largest 2 | . 2 2 Hottest 64 | . 40 64 Shots Fired 201 | . 162 39 Gun 193 | . 162 31 Cannon 8 | . . 8 Launcher . | . . . Special . | . . . Kinetic 201 | . 162 39 Thermal . | . . . Explosive . | . . . Electromagnetic . | . . . Robot Hit Streak 10 | . 10 9 Robot Miss Streak 3 | . 3 3 Penetration Max . | . . . Secondary Targets 1 | . 1 . Max Gunslinging Chain 1 | . 1 . Shots Hit Robots 144 | . 111 33 Core Hits 42 | . 32 10 Critical Kills . | . . . Critical Parts Destroyed . | . . . Critical Strikes . | . . . Melee Attacks 24 | . . 24 Impact . | . . . Slashing 24 | . . 24 Piercing . | . . . Sneak Attacks . | . . . Combat Hostiles . | . . . Follow-up Attacks . | . . . Damage Inflicted 1652 | . 1131 521 Guns 1490 | . 1125 365 Cannons 156 | . . 156 Explosions . | . . . Melee . | . . . Ramming 6 | . 6 . Kinetic 1646 | . 1125 521 Thermal . | . . . Explosive . | . . . Electromagnetic . | . . . Impact . | . . . Slashing . | . . . Piercing . | . . . Highest Corruption . | . . . Average Corruption . | . . . Corruption Purged . | . . . Corruption Blocked . | . . . Overload Shots . | . . . Overflow Damage . | . . . Projectiles . | . . . Explosions . | . . . Melee . | . . . Knockbacks 2 | . . 2 Impact . | . . . Kinetic 2 | . . 2 Secondary . | . . . Self-Inflicted Damage . | . . . Shots . | . . . Rammed 1 | . 1 . Targets Rammed 1 | . 1 . Kicked . | . . . Crushed . | . . . Highest Temperature 12 | . 12 12 Average Temperature 7 | . 7 12 Received Heat Transfer 612 | . 423 189 Siege Activations . | . . . Robots Corrupted . | . . . Combat Hostiles . | . . . Parts Fried . | . . . Impact Corruptions . | . . . Robots Melted . | . . . Combat Hostiles . | . . . Parts Melted . | . . . Heat Transferred . | . . . Parts Sabotaged . | . . . Parts Stolen . | . . . Parts Stripped . | . . . Power Chain Reactions . | . . . Alert | -11 -10 -10 ------- Run | Yrd Mat Sub Peak Influence 221 | . 221 . Initial . | . . . Average 88 | . 92 . Maximum Alert Level 1 | . 1 . Low Security (%) 89 | 100 89 . Level 1 10 | . 10 . Level 2 . | . . . Level 3 . | . . . Level 4 . | . . . Level 5 . | . . . High Security . | . . . Max Security . | . . . Squads Dispatched 6 | . 6 . Investigation 3 | . 3 . Extermination . | . . . Reinforcement 3 | . 3 . Assault . | . . . Garrison . | . . . Intercept . | . . . Searches Triggered . | . . . Construction Impeded . | . . . Haulers Reinforced . | . . . Active Scanning Responses . | . . . Cargo Convoy Interrupts . | . . . Stealth | -11 -10 -10 --------- Run | Yrd Mat Sub Distress Signals 2 | . 2 . Communications Jammed . | . . . Distress Signals . | . . . Times Spotted 49 | . 31 18 Peak Tracking Total 6 | . 6 6 Tactical Retreats . | . . . Traps | -11 -10 -10 ------- Run | Yrd Mat Sub Traps Triggered 2 | . 2 . Indirectly . | . . . Trap Hack Attempts . | . . . Triggered . | . . . Disarmed . | . . . Reprogrammed . | . . . Reused . | . . . Traps Extracted . | . . . Installed . | . . . Triggered . | . . . Machines | -11 -10 -10 ---------- Run | Yrd Mat Sub Machines Disabled . | . . . Max in Single Turn . | . . . Machines Repaired . | . . . Machines Dismantled . | . . . Machines Sabotaged . | . . . Overloaded Fab Kills . | . . . Hacking | -11 -10 -10 --------- Run | Yrd Mat Sub Machines Accessed 4 | . 4 . Terminals 4 | . 4 . Fabricators . | . . . Repair Stations . | . . . Recycling Units . | . . . Scanalyzers . | . . . Garrison Access . | . . . Total Hacks 14 | . 14 . Successful 3 | . 3 . Failed 11 | . 11 . Catastrophic 1 | . 1 . Database Lockouts . | . . . Manual 9 | . 9 . Terminals 14 | . 14 . Fabricators . | . . . Repair Stations . | . . . Recycling Units . | . . . Scanalyzers . | . . . Garrison Access . | . . . Terminal Hacks 3 | . 3 . Part Schematic 1 | . 1 . Prototype ID Bank 1 | . 1 . Unreport Threat 1 | . 1 . Fabricator Hacks . | . . . Repair Station Hacks . | . . . Recycling Unit Hacks . | . . . Scanalyzer . | . . . Garrison Access Hacks . | . . . Unauthorized Hacks . | . . . Terminals . | . . . Fabricators . | . . . Repair Stations . | . . . Recycling Units . | . . . Scanalyzers . | . . . Garrison Access . | . . . Data Cores Recovered . | . . . Used . | . . . Hacking Detections 4 | . 4 . Full Trace Events 1 | . 1 . Feedback Events . | . . . Feedback Blocked . | . . . Robot Schematics Acquired . | . . . Robots Built . | . . . Authchips . | . . . Time . | . . . Total Robot Build Rating . | . . . Part Schematics Acquired 1 | . 1 . Parts Built . | . . . Authchips . | . . . Time . | . . . Total Part Build Rating . | . . . Parts Repaired . | . . . Time . | . . . Parts Recycled . | . . . Recycled Matter . | . . . Retrieved Matter . | . . . Retrieved Components . | . . . Parts Scanalyzed . | . . . Part Schematics Acquired . | . . . Parts Damaged . | . . . Bothacking | -11 -10 -10 ------------ Run | Yrd Mat Sub Used RIF Installer . | . . . Robots Hacked . | . . . Non-combat . | . . . Combat . | . . . Robot Hacks Applied . | . . . Relay Couplers Released . | . . . Fabnet Peak Effective % . | . . . Robots Rewired . | . . . Allies Hacked . | . . . Hacks Repelled . | . . . Allies | -11 -10 -10 -------- Run | Yrd Mat Sub Total Allies . | . . . Largest Group . | . . . Highest-Rated Group . | . . . Highest-Rated Ally . | . . . Total Orders . | . . . Ally Attacks . | . . . Total Damage . | . . . Kills . | . . . Allies Corrupted . | . . . Allies Melted . | . . . Intel | -11 -10 -10 ------- Run | Yrd Mat Sub Robot Analysis Total . | . . . Derelict Logs Recovered 1 | . . 1 Drone Launches . | . . . Drone Recoveries . | . . . Exploration | -11 -10 -10 ------------- Run | Yrd Mat Sub Turns Passed 2788 | 52 1268 1468 Spaces Moved 1489 | 47 646 796 Core 2 | 2 . . Treads 1334 | . 538 796 Legs . | . . . Wheels 153 | 45 108 . Hover . | . . . Flight . | . . . Fastest Speed 50 | 50 80 160 Average Speed 151 | 78 146 160 Slowest Speed 160 | 80 160 160 Overloaded Moves . | . . . Propulsion Burnouts . | . . . Robots Hopped . | . . . Cave-ins Triggered . | . . . Exploration Rate (%) 52 | 3 99 56 Regions Visited 2 Branch Regions 1 Pre-discovered Areas 1 | . . 1 Known Exits Taken . | . . . Unknown Exits Taken 2 | 1 1 . Scrap Searched 3 | . . 3 Spaces Dug . | . . . Terrain Destroyed . | . . . Melee . | . . . Projectile . | . . . AOE . | . . . Terrain Rammed . | . . . Walls Destroyed . | . . . Machines Disabled . | . . . Actions | -11 -10 -10 --------- Run | Yrd Mat Sub Total 1797 | 58 821 918 Wait 100 | . 67 33 Move 1487 | 46 645 796 Hop . | . . . Pick Up 26 | 6 12 8 Fast Attach 11 | 6 2 3 Attach 6 | . 3 3 Detach 1 | . . 1 Swap 13 | . 5 8 Drop 18 | . 5 13 Fire 110 | . 81 29 Melee 24 | . . 24 Ram . | . . . Kick . | . . . Crush 1 | . 1 . Escape Stasis . | . . . Rewire . | . . . Trap . | . . . Miscellaneous . | . . . Route ------- -11/Scrapyard -10/Materials (discovered 5 exits: [*Mat x3] / [*Min] / [*Sub]) -10/Subcaves History --------- Turn | Location | Event 12 | -11/Scrapyard | Discovered new exit (range 15) 53 | -11/Scrapyard | Entered Materials 108 | -10/Materials | Discovered new exit (range 14) 318 | -10/Materials | Build established: Mutant 572 | -10/Materials | Discovered new exit (range 15) 807 | -10/Materials | Discovered new exit (range 16) 947 | -10/Materials | Core integrity fell below 50% 1032 | -10/Materials | Discovered new exit (range 4) 1310 | -10/Materials | Discovered new exit (range 8) 1321 | -10/Materials | Entered Subcaves 1398 | -10/Subcaves | Ambushed by swarm of Subdwellers 1402 | -10/Subcaves | Ambushed by Subdwellers from Twisted Machinery 1579 | -10/Subcaves | Disturbed a concealed Subdweller 1670 | -10/Subcaves | Ambushed by Subdweller buried in earth 1978 | -10/Subcaves | Learned location of Zion (-7) 2604 | -10/Subcaves | Core integrity fell below 20% 2789 | -10/Subcaves | Destroyed by Y-45 Defender with Beam Rifle Last Messages --------------- 02608_ BL-6ZO(R) destroyed. 02612_ Acquired 52 matter. 02666_ Sub. Power Source shoots sparks and powers down. 02746_ Critical hit (Burn: +37). 02753_ S-10 Pest destroyed. 02755_ Discarded Imp. Targeting Computer. 02756_ Dropped Scrap Shield. 02756_ Dropped Lrg. Storage Unit. 02757_ Acquired Scrap Shield. 02763_ Flight Unit fries itself beyond repair. 02764_ Critical hit (Burn: +37). 02770_ Lgt. Ion Engine fries itself beyond repair. 02772_ Y-45 Defender destroyed. 02781_ Heat Sink fries itself beyond repair. 02782_ Imp. Ion Engine fries itself beyond repair. 02784_ Lgt. Armor Plating fries itself beyond repair. 02786_ Hvy. Assault Rifle fries itself beyond repair. 02786_ Scrap Shield destroyed. 02787_ Heat Sink fries itself beyond repair. 02789_ Critical hit (Burn: +37). Map ----- +----------------------------------------------------+ | ?????????????????????????????????????????????????? | | ?????????????????????????????????????????????????? | | ?????????????????????????????????????????????????? | | ?????????????????????????????????????????????????? | | ?????????????????????????????????????????????????? | | ?????????????????????????????????????????????????? | | ?????????????????????????????????????????????????? | | ?????????????????????????????????????????????????? | | ?????????????????????????????????????????????????? | | ?????????????????????????????????????????????????? | | ?????????????????????????????????????????????????? | | ?????????????????????????????????????????????????? | | ?????????????????????????????????????????????????? | | ??????????????? ????????????????????????????????? | | ??????????????? ???????????????????????????????? | | ?????????????? ??????????????????????????????? | | ?????????????? ?????????????????????????????? | | ????????????? ????????????????????????????? | | ?????????????? ???????????????????????????? | | ????????????? #??????????????????#???????? | | ?????????????# ####????????????? #???????? | | ??????????????# ####????????? ????????? | | ???????????????? % # ####????? #???????? | | ???????????????????????# Y%[ ##### #????????? | | ???????????????????????##==## # #????????? | | ????????????????????????#@]### #????????? | | ???????????????????????#!![### # # #???????? | | ???????????????????????#=]### ####?? ???? | | ??????????????????????? ### ### ??? | | ??????????????????????# ??## #??? | | ??????????????????????# ???## #??? | | ??????????????????????###????# ## ??? | | ?????????????????????????????# #?# # ????? | | ????????????????????????????## ##? ### ??? | | ???????????????????????????## ##?#####???????# | | ??????????????????????????## ###??????????? | | ??????????????????????????# ##?????????# | | ??????????????????????????# #####????# | | ??????????????????????????# ## ## #???# | | ??????????????????????????## ## ## #??# | | ???????????????????????????## ### #??# | | ????????????????????????????## ## ##?# | | ?????????????????????????????# ### # | | ?????????????????????????????# ## ## #? | | ?????????????????????????????# ## #? | | ????????????????????????????## ##### #? | | ????????????????????????????# ##?## #? | | ????????????????????????????# ""##?# #### #? | | ????????????????????????????# """" #?###??## "## | | ????????????????????????????# "## #?????## """"# | +----------------------------------------------------+ Best States ------------- Heat Dissipation 25 Energy Generation 15 Energy Capacity 250 Matter Stores 300 Matter Capacity 300 Sight Range 16 Terrain Scan Density 10 Armor Coverage 800 Power Shielding 33 Evasion (%) 44 Targeting Accuracy 6 Recoil Reduction 2 Item Schematics ----------------- Grenade Launcher | -10/Materials | Hacked Robot Schematics ------------------ None Fabricated ------------ Nothing Alien Tech Used ----------------- None Achievements -------------- None Challenges ------------ None Game ------ Seed WeaponFrostStorage Manual? 0 Play Time 00:25:03 Cumulative 74.5 hours Start 2024.04.06 @ 16:55:58 End 2024.04.06 @ 17:17:05 Sessions 1 Manual Loads 0 Difficulty Rogue Special Mode None Game No. 44 Rogue 43 Adventurer 1 Explorer 0 Win Type - Total 1 Types 1/0/0/0/0/0/0/0/0 Lore% 41 Gallery% 39 Achievement% 35 Wizard Run 0 Options --------- Layout 0 ASCII 1 Keyboard 1 Movement Numpad Keybinds 0 Fullscreen 1 Font 18/SmallcapsGlow Map View 76x50 Zoom Use 0% Tactical HUD 1 Map Filters NONE Filters NONE Steam 1 RUN: e29fe202-7bbf-41f1-85c0-2f8c9e8ff5a9